[Event "Early-Titled-Tuesday-Blitz-November-28-2023"]
[Site "Chess.com"]
[Date "2023.11.28"]
[Round "5"]
[White "sokidze"]
[Black "Burovic00"]
[Result "1-0"]
[WhiteElo "2751"]
[BlackElo "2558"]
[TimeControl "180+1"]
[EndTime "8:58:05 PST"]
[Termination "sokidze won by resignation"]

1. d4 {[%clk 0:03:00.9]} 1... d6 {[%clk 0:03:00.2]} 2. e4 {[%clk 0:03:00.3]}
2... g6 {[%clk 0:03:00.4]} 3. Nc3 {[%clk 0:02:59.4]} 3... Bg7 {[%clk 0:03:00.6]}
4. g3 {[%clk 0:02:58.5]} 4... b6 {[%clk 0:02:55.8]} 5. Bg2 {[%clk 0:02:57.4]}
5... Bb7 {[%clk 0:02:56.3]} 6. Nge2 {[%clk 0:02:57.3]} 6... Nd7 {[%clk
0:02:56.5]} 7. O-O {[%clk 0:02:56.8]} 7... e5 {[%clk 0:02:56.7]} 8. a4 {[%clk
0:02:49]} 8... a6 {[%clk 0:02:56.4]} 9. b3 {[%clk 0:02:44.9]} 9... Ngf6 {[%clk
0:02:47]} 10. dxe5 {[%clk 0:02:04.8]} 10... dxe5 {[%clk 0:02:47]} 11. Ba3 {[%clk
0:01:57.9]} 11... Bf8 {[%clk 0:02:47.4]} 12. Bb2 {[%clk 0:01:55.5]} 12... Bg7
{[%clk 0:02:47.9]} 13. Nd5 {[%clk 0:01:45.6]} 13... O-O {[%clk 0:02:42.9]} 14.
Qc1 {[%clk 0:01:38.7]} 14... c6 {[%clk 0:02:27.3]} 15. Nxf6+ {[%clk 0:01:31.6]}
15... Qxf6 {[%clk 0:02:27.1]} 16. Qe3 {[%clk 0:01:30.7]} 16... Rfd8 {[%clk
0:02:07.9]} 17. Rfd1 {[%clk 0:01:27.1]} 17... Nc5 {[%clk 0:01:45.7]} 18. Rxd8+
{[%clk 0:01:16.3]} 18... Qxd8 {[%clk 0:01:45.2]} 19. a5 {[%clk 0:01:15.4]} 19...
Nd7 {[%clk 0:00:39.7]} 20. Rd1 {[%clk 0:01:05.5]} 20... Qc7 {[%clk 0:00:39.2]}
21. Bh3 {[%clk 0:00:40.9]} 21... Nc5 {[%clk 0:00:39.4]} 22. axb6 {[%clk
0:00:34.3]} 22... Qxb6 {[%clk 0:00:40.3]} 23. Ba3 {[%clk 0:00:27.9]} 23... Bf8
{[%clk 0:00:40]} 24. b4 {[%clk 0:00:23.1]} 24... Na4 {[%clk 0:00:26.8]} 25. Qb3
{[%clk 0:00:22.9]} 25... c5 {[%clk 0:00:18.2]} 26. Rd7 {[%clk 0:00:14]} 26... c4
{[%clk 0:00:12.6]} 27. Qxc4 {[%clk 0:00:13.8]} 27... Qf6 {[%clk 0:00:04.8]} 28.
Rxb7 {[%clk 0:00:13.5]} 28... Rd8 {[%clk 0:00:04.8]} 29. Rxf7 {[%clk 0:00:11.6]}
29... Rd1+ {[%clk 0:00:03]} 30. Kg2 {[%clk 0:00:11.4]} 30... Qxf7 {[%clk
0:00:02.8]} 31. Be6 {[%clk 0:00:11.8]} 31... Nb6 {[%clk 0:00:03.7]} 32. Bxf7+
{[%clk 0:00:11.6]} 32... Kg7 {[%clk 0:00:03.4]} 33. Qe6 {[%clk 0:00:12]} 33...
Rd7 {[%clk 0:00:02.8]} 34. Be8 {[%clk 0:00:08.9]} 34... Re7 {[%clk 0:00:02.9]}
35. Qxb6 {[%clk 0:00:09.5]} 35... Rxe8 {[%clk 0:00:02.8]} 36. Qxa6 {[%clk
0:00:09.8]} 36... Re7 {[%clk 0:00:03.2]} 37. Nc3 {[%clk 0:00:09.9]} 37... Rf7
{[%clk 0:00:03.6]} 38. Nd5 {[%clk 0:00:10.3]} 38... Bd6 {[%clk 0:00:03.9]} 39.
Qxd6 {[%clk 0:00:10.2]} 1-0

[Event "Early-Titled-Tuesday-Blitz-November-28-2023"]
[Site "Chess.com"]
[Date "2023.11.28"]
[Round "5"]
[White "Ariadna_Atreides"]
[Black "OneTrickPony_82"]
[Result "0-1"]
[WhiteElo "2201"]
[BlackElo "2414"]
[TimeControl "180+1"]
[EndTime "8:58:05 PST"]
[Termination "OneTrickPony_82 won on time"]

1. d4 {[%clk 0:03:00.9]} 1... Nf6 {[%clk 0:02:59.3]} 2. Nf3 {[%clk 0:03:01.4]}
2... d5 {[%clk 0:02:59.1]} 3. e3 {[%clk 0:03:01.4]} 3... c5 {[%clk 0:02:59]} 4.
dxc5 {[%clk 0:03:00]} 4... e6 {[%clk 0:02:59]} 5. a3 {[%clk 0:02:59.7]} 5... a5
{[%clk 0:02:55.3]} 6. c4 {[%clk 0:02:54.8]} 6... Bxc5 {[%clk 0:02:54.5]} 7. Nc3
{[%clk 0:02:54.3]} 7... O-O {[%clk 0:02:49.1]} 8. cxd5 {[%clk 0:02:53.9]} 8...
exd5 {[%clk 0:02:49.8]} 9. Bd3 {[%clk 0:02:51.4]} 9... Nc6 {[%clk 0:02:49.6]}
10. h3 {[%clk 0:02:47.8]} 10... Re8 {[%clk 0:02:49.1]} 11. O-O {[%clk
0:02:47.2]} 11... Ba7 {[%clk 0:02:46.9]} 12. Nb5 {[%clk 0:02:45.7]} 12... Bb8
{[%clk 0:02:45.8]} 13. b3 {[%clk 0:02:34.4]} 13... Ne4 {[%clk 0:02:37.8]} 14.
Bb2 {[%clk 0:02:31.7]} 14... Qe7 {[%clk 0:02:16.8]} 15. Rc1 {[%clk 0:02:22.8]}
15... Ra6 {[%clk 0:02:12.4]} 16. Nc3 {[%clk 0:01:44.5]} 16... Nxc3 {[%clk
0:01:43.5]} 17. Bxc3 {[%clk 0:01:40.4]} 17... Ra8 {[%clk 0:01:31.3]} 18. Bb1
{[%clk 0:01:35.5]} 18... Qxa3 {[%clk 0:01:10.8]} 19. Qd3 {[%clk 0:01:26.9]}
19... g6 {[%clk 0:01:10.7]} 20. Qxd5 {[%clk 0:01:04.4]} 20... Be6 {[%clk
0:01:09.2]} 21. Qd2 {[%clk 0:01:00.9]} 21... Rd8 {[%clk 0:01:04.8]} 22. Nd4
{[%clk 0:00:57.9]} 22... Nxd4 {[%clk 0:01:04.5]} 23. Bxd4 {[%clk 0:00:55.1]}
23... Qd6 {[%clk 0:01:00.7]} 24. f4 {[%clk 0:00:50]} 24... Ba7 {[%clk
0:01:00.5]} 25. Rfd1 {[%clk 0:00:45.1]} 25... Bxb3 {[%clk 0:00:55.1]} 26. Bc2
{[%clk 0:00:38]} 26... Bxc2 {[%clk 0:00:49.9]} 27. Qxc2 {[%clk 0:00:35.4]} 27...
Bxd4 {[%clk 0:00:49.5]} 28. Rxd4 {[%clk 0:00:34.9]} 28... Qe7 {[%clk 0:00:49.9]}
29. Rxd8+ {[%clk 0:00:21.4]} 29... Rxd8 {[%clk 0:00:50.8]} 30. e4 {[%clk
0:00:11.2]} 30... b5 {[%clk 0:00:46.7]} 31. f5 {[%clk 0:00:10.3]} 31... Qe5
{[%clk 0:00:41.9]} 32. Rf1 {[%clk 0:00:08.7]} 32... a4 {[%clk 0:00:38.3]} 33.
Qc1 {[%clk 0:00:05.9]} 33... Qxe4 {[%clk 0:00:28.1]} 34. f6 {[%clk 0:00:06.1]}
34... Qd4+ {[%clk 0:00:18.8]} 35. Kh1 {[%clk 0:00:05.3]} 35... Qd2 {[%clk
0:00:18.6]} 36. Qc7 {[%clk 0:00:04.5]} 36... h5 {[%clk 0:00:15.9]} 37. Qb7
{[%clk 0:00:03.3]} 37... Qd7 {[%clk 0:00:15.3]} 38. Qf3 {[%clk 0:00:02.2]} 38...
b4 {[%clk 0:00:13.6]} 39. Qf4 {[%clk 0:00:02.1]} 39... Qd6 {[%clk 0:00:13.6]}
40. Qh6 {[%clk 0:00:01.5]} 40... Qf8 {[%clk 0:00:13.8]} 41. Qf4 {[%clk
0:00:01.4]} 41... Rb8 {[%clk 0:00:12.7]} 0-1

[Event "Early-Titled-Tuesday-Blitz-November-28-2023"]
[Site "Chess.com"]
[Date "2023.11.28"]
[Round "5"]
[White "GAusal"]
[Black "Nf3c5"]
[Result "1/2-1/2"]
[WhiteElo "2297"]
[BlackElo "2491"]
[TimeControl "180+1"]
[EndTime "8:58:06 PST"]
[Termination "Game drawn by repetition"]

1. d4 {[%clk 0:03:00.9]} 1... Nf6 {[%clk 0:02:56.6]} 2. Nf3 {[%clk 0:03:01]}
2... g6 {[%clk 0:02:45.9]} 3. c4 {[%clk 0:02:59.8]} 3... Bg7 {[%clk 0:02:42.1]}
4. Nc3 {[%clk 0:02:59.7]} 4... d5 {[%clk 0:02:42.7]} 5. Bg5 {[%clk 0:02:58.1]}
5... dxc4 {[%clk 0:02:39.7]} 6. Qa4+ {[%clk 0:02:52.6]} 6... c6 {[%clk
0:02:35.6]} 7. Qxc4 {[%clk 0:02:52.3]} 7... b5 {[%clk 0:02:33.8]} 8. Qd3 {[%clk
0:02:52.1]} 8... Bb7 {[%clk 0:02:30.6]} 9. e3 {[%clk 0:02:48.3]} 9... Nbd7
{[%clk 0:02:28.1]} 10. Be2 {[%clk 0:02:42.5]} 10... a6 {[%clk 0:02:07.9]} 11.
O-O {[%clk 0:02:40.9]} 11... c5 {[%clk 0:02:08.2]} 12. dxc5 {[%clk 0:02:28.8]}
12... Nxc5 {[%clk 0:02:05.1]} 13. Qxd8+ {[%clk 0:02:28.5]} 13... Rxd8 {[%clk
0:02:05.8]} 14. Rfd1 {[%clk 0:02:26.2]} 14... O-O {[%clk 0:01:57.6]} 15. Rac1
{[%clk 0:02:21.7]} 15... Rxd1+ {[%clk 0:01:50.6]} 16. Rxd1 {[%clk 0:02:19.1]}
16... Rc8 {[%clk 0:01:46.2]} 17. Nd4 {[%clk 0:02:09.9]} 17... h6 {[%clk
0:01:38.3]} 18. Bf4 {[%clk 0:01:57.1]} 18... Nfe4 {[%clk 0:01:33.2]} 19. Bg3
{[%clk 0:01:48.7]} 19... Nxc3 {[%clk 0:01:27.1]} 20. bxc3 {[%clk 0:01:48]} 20...
Na4 {[%clk 0:01:22]} 21. c4 {[%clk 0:01:39]} 21... bxc4 {[%clk 0:01:19.2]} 22.
Rb1 {[%clk 0:01:29.3]} 22... Be4 {[%clk 0:01:13.4]} 23. Rc1 {[%clk 0:01:25]}
23... Bxd4 {[%clk 0:00:49.9]} 24. exd4 {[%clk 0:01:23.8]} 24... Bd5 {[%clk
0:00:50.3]} 25. f3 {[%clk 0:01:14]} 25... f6 {[%clk 0:00:48.7]} 26. Bd1 {[%clk
0:01:13]} 26... Nb2 {[%clk 0:00:42.6]} 27. Be2 {[%clk 0:01:10.6]} 27... Kf7
{[%clk 0:00:40.8]} 28. Be1 {[%clk 0:01:08.5]} 28... Na4 {[%clk 0:00:39]} 29. Ba5
{[%clk 0:01:05.4]} 29... Rc6 {[%clk 0:00:25.8]} 30. Kf2 {[%clk 0:01:03.9]} 30...
Ke6 {[%clk 0:00:25.1]} 31. Ke3 {[%clk 0:01:03.5]} 31... Kd6 {[%clk 0:00:24.7]}
32. Bd8 {[%clk 0:00:59.5]} 32... Kd7 {[%clk 0:00:22]} 33. Ba5 {[%clk 0:00:58.2]}
33... Nb6 {[%clk 0:00:22.4]} 34. Bxb6 {[%clk 0:00:52.6]} 34... Rxb6 {[%clk
0:00:22.4]} 35. Bxc4 {[%clk 0:00:52.7]} 35... Rc6 {[%clk 0:00:20.6]} 36. Kd3
{[%clk 0:00:50]} 36... Kd6 {[%clk 0:00:18.7]} 37. Rc2 {[%clk 0:00:49.7]} 37...
a5 {[%clk 0:00:10.3]} 38. Bxd5 {[%clk 0:00:47]} 38... Rxc2 {[%clk 0:00:10.9]}
39. Kxc2 {[%clk 0:00:43.1]} 39... Kxd5 {[%clk 0:00:11.8]} 40. Kc3 {[%clk
0:00:41.2]} 40... a4 {[%clk 0:00:10.3]} 41. a3 {[%clk 0:00:37.7]} 41... g5
{[%clk 0:00:08.5]} 42. g4 {[%clk 0:00:33.8]} 42... e6 {[%clk 0:00:08.9]} 43. h3
{[%clk 0:00:33.9]} 43... f5 {[%clk 0:00:09.2]} 44. Kd3 {[%clk 0:00:32.5]} 44...
f4 {[%clk 0:00:05.3]} 45. Kc3 {[%clk 0:00:31.5]} 45... e5 {[%clk 0:00:06.2]} 46.
dxe5 {[%clk 0:00:31]} 46... Kxe5 {[%clk 0:00:06.9]} 47. Kd3 {[%clk 0:00:31.1]}
47... Kd5 {[%clk 0:00:07.2]} 48. Kc3 {[%clk 0:00:31.3]} 48... Kc5 {[%clk
0:00:07.9]} 49. Kd3 {[%clk 0:00:31]} 49... Kd5 {[%clk 0:00:07.5]} 50. Kc3 {[%clk
0:00:31.3]} 50... Kc5 {[%clk 0:00:08.1]} 51. Kd3 {[%clk 0:00:31.6]} 51... Kd5
{[%clk 0:00:08.7]} 1/2-1/2

[Event "Early-Titled-Tuesday-Blitz-November-28-2023"]
[Site "Chess.com"]
[Date "2023.11.28"]
[Round "5"]
[White "Alexchess1984"]
[Black "FARIZA2018"]
[Result "1-0"]
[WhiteElo "2709"]
[BlackElo "2526"]
[TimeControl "180+1"]
[EndTime "8:58:07 PST"]
[Termination "Alexchess1984 won by resignation"]

1. e4 {[%clk 0:03:00.9]} 1... e5 {[%clk 0:03:00.1]} 2. Nc3 {[%clk 0:02:59.4]}
2... Nf6 {[%clk 0:02:59.9]} 3. d4 {[%clk 0:02:59.3]} 3... exd4 {[%clk
0:02:58.2]} 4. Qxd4 {[%clk 0:03:00.2]} 4... Nc6 {[%clk 0:02:58.2]} 5. Qd3 {[%clk
0:03:00.4]} 5... Bb4 {[%clk 0:02:56.6]} 6. Bd2 {[%clk 0:02:57.9]} 6... d6 {[%clk
0:02:55.3]} 7. O-O-O {[%clk 0:02:57.2]} 7... O-O {[%clk 0:02:50.1]} 8. Qg3
{[%clk 0:02:50.6]} 8... Ne5 {[%clk 0:02:11.8]} 9. f3 {[%clk 0:02:45.1]} 9... Be6
{[%clk 0:01:51.2]} 10. h4 {[%clk 0:02:40.5]} 10... Kh8 {[%clk 0:01:46.9]} 11. h5
{[%clk 0:02:39.2]} 11... h6 {[%clk 0:01:46.4]} 12. Qf2 {[%clk 0:02:35.9]} 12...
Nc4 {[%clk 0:01:36.4]} 13. Bxc4 {[%clk 0:02:34.2]} 13... Bxc4 {[%clk 0:01:36.7]}
14. g4 {[%clk 0:02:34.1]} 14... Nd7 {[%clk 0:01:21.8]} 15. Qd4 {[%clk
0:02:20.6]} 15... Ne5 {[%clk 0:01:14.8]} 16. Qf2 {[%clk 0:01:51.9]} 16... Be6
{[%clk 0:01:06.9]} 17. a3 {[%clk 0:01:41.3]} 17... Bc5 {[%clk 0:01:06.6]} 18.
Be3 {[%clk 0:01:41.9]} 18... Bxe3+ {[%clk 0:01:06.2]} 19. Qxe3 {[%clk
0:01:42.7]} 19... Nc4 {[%clk 0:01:06.7]} 20. Qd3 {[%clk 0:01:33.5]} 20... Qg5+
{[%clk 0:01:05.9]} 21. Kb1 {[%clk 0:01:32.8]} 21... b5 {[%clk 0:01:03.9]} 22.
Nge2 {[%clk 0:01:30.6]} 22... Ne5 {[%clk 0:00:41.2]} 23. Qxb5 {[%clk 0:01:19]}
23... Nxf3 {[%clk 0:00:41.2]} 24. Qxg5 {[%clk 0:01:16.4]} 24... Nxg5 {[%clk
0:00:41.4]} 25. Rhg1 {[%clk 0:01:13.2]} 25... Rab8 {[%clk 0:00:37.2]} 26. Nf4
{[%clk 0:01:11.8]} 26... Bd7 {[%clk 0:00:33.1]} 27. Nfd5 {[%clk 0:01:07.4]}
27... Nf3 {[%clk 0:00:32.7]} 28. Rg3 {[%clk 0:01:05.5]} 28... Ne5 {[%clk
0:00:32]} 29. Nxc7 {[%clk 0:01:04.1]} 29... Bxg4 {[%clk 0:00:19.5]} 30. Rxd6
{[%clk 0:01:02.2]} 30... Nc4 {[%clk 0:00:17.9]} 31. Rc6 {[%clk 0:00:57.4]} 31...
Ne5 {[%clk 0:00:06.7]} 32. Rc5 {[%clk 0:00:54.8]} 32... f6 {[%clk 0:00:07]} 33.
Rxe5 {[%clk 0:00:54]} 33... fxe5 {[%clk 0:00:07.2]} 34. Rxg4 {[%clk 0:00:54.5]}
34... Rf1+ {[%clk 0:00:07.5]} 35. Ka2 {[%clk 0:00:54.3]} 35... Rf2 {[%clk
0:00:07.8]} 36. Na6 {[%clk 0:00:45.9]} 36... Rd8 {[%clk 0:00:06.7]} 37. Nb4
{[%clk 0:00:42.1]} 37... Rh2 {[%clk 0:00:07]} 38. Ncd5 {[%clk 0:00:39.3]} 38...
Rxh5 {[%clk 0:00:06.8]} 39. Nc6 {[%clk 0:00:39.4]} 39... Re8 {[%clk 0:00:07.1]}
40. Nxa7 {[%clk 0:00:37.2]} 40... Rh2 {[%clk 0:00:07.5]} 41. c4 {[%clk
0:00:35.9]} 41... h5 {[%clk 0:00:08.1]} 42. Rg5 {[%clk 0:00:34.2]} 42... Kh7
{[%clk 0:00:07.5]} 43. Nc6 {[%clk 0:00:32.9]} 43... Kh6 {[%clk 0:00:06.9]} 44.
Rf5 {[%clk 0:00:31.8]} 44... h4 {[%clk 0:00:06.3]} 45. Nxe5 {[%clk 0:00:31.2]}
45... Re2 {[%clk 0:00:04]} 46. Ng4+ {[%clk 0:00:30]} 46... Kg6 {[%clk
0:00:04.1]} 47. Nf4+ {[%clk 0:00:30.5]} 1-0

[Event "Early-Titled-Tuesday-Blitz-November-28-2023"]
[Site "Chess.com"]
[Date "2023.11.28"]
[Round "5"]
[White "verrbaa"]
[Black "Auger_Pi"]
[Result "1-0"]
[WhiteElo "2482"]
[BlackElo "2599"]
[TimeControl "180+1"]
[EndTime "8:58:07 PST"]
[Termination "verrbaa won by resignation"]

1. e4 {[%clk 0:03:00.9]} 1... c5 {[%clk 0:02:59.1]} 2. Nf3 {[%clk 0:02:54.1]}
2... d6 {[%clk 0:02:58.9]} 3. d4 {[%clk 0:02:46.9]} 3... cxd4 {[%clk 0:02:59.8]}
4. Nxd4 {[%clk 0:02:47.4]} 4... Nf6 {[%clk 0:02:58.3]} 5. Nc3 {[%clk 0:02:47.8]}
5... g6 {[%clk 0:02:57.8]} 6. Bc4 {[%clk 0:02:44.6]} 6... Bg7 {[%clk 0:02:55.2]}
7. O-O {[%clk 0:02:42.2]} 7... O-O {[%clk 0:02:54.1]} 8. Re1 {[%clk 0:02:41.7]}
8... Nc6 {[%clk 0:02:52.8]} 9. Nb3 {[%clk 0:02:38]} 9... a6 {[%clk 0:02:43.4]}
10. a4 {[%clk 0:02:36.4]} 10... Bd7 {[%clk 0:02:23.2]} 11. Bf1 {[%clk
0:02:29.4]} 11... Nb4 {[%clk 0:02:13.8]} 12. a5 {[%clk 0:02:11.9]} 12... Rc8
{[%clk 0:02:08.6]} 13. Be3 {[%clk 0:01:49.5]} 13... Nc6 {[%clk 0:02:04]} 14. Bb6
{[%clk 0:01:47.9]} 14... Qe8 {[%clk 0:02:04.6]} 15. Nd5 {[%clk 0:01:44.9]} 15...
Be6 {[%clk 0:01:55.8]} 16. c3 {[%clk 0:01:38.9]} 16... Qd7 {[%clk 0:01:50.5]}
17. Be3 {[%clk 0:01:20.7]} 17... Bxd5 {[%clk 0:01:46.5]} 18. exd5 {[%clk
0:01:20.1]} 18... Ne5 {[%clk 0:01:47.4]} 19. h3 {[%clk 0:00:53.5]} 19... Nc4
{[%clk 0:01:47.3]} 20. Bc1 {[%clk 0:00:47.2]} 20... Rfe8 {[%clk 0:01:46.2]} 21.
Qf3 {[%clk 0:00:45.1]} 21... Qf5 {[%clk 0:01:40.9]} 22. Qxf5 {[%clk 0:00:44.4]}
22... gxf5 {[%clk 0:01:41.8]} 23. Rd1 {[%clk 0:00:42.2]} 23... Ne4 {[%clk
0:01:19.9]} 24. Ra4 {[%clk 0:00:32.1]} 24... Ne5 {[%clk 0:01:07.9]} 25. f3
{[%clk 0:00:26.4]} 25... Nc5 {[%clk 0:01:04.3]} 26. Nxc5 {[%clk 0:00:26.2]}
26... Rxc5 {[%clk 0:01:05.2]} 27. Be3 {[%clk 0:00:23.9]} 27... Rcc8 {[%clk
0:01:04.5]} 28. Rb4 {[%clk 0:00:23.3]} 28... Rc7 {[%clk 0:01:03.4]} 29. f4
{[%clk 0:00:20.6]} 29... Nd7 {[%clk 0:01:02.8]} 30. Bd3 {[%clk 0:00:20.9]} 30...
e6 {[%clk 0:01:02]} 31. dxe6 {[%clk 0:00:21]} 31... fxe6 {[%clk 0:01:02.9]} 32.
Be2 {[%clk 0:00:16.9]} 32... d5 {[%clk 0:01:02.9]} 33. Kf2 {[%clk 0:00:14.4]}
33... Re7 {[%clk 0:01:01.6]} 34. g3 {[%clk 0:00:14.4]} 34... Nc5 {[%clk
0:01:01.9]} 35. Bf3 {[%clk 0:00:12.6]} 35... Ne4+ {[%clk 0:00:52.5]} 36. Bxe4
{[%clk 0:00:12.7]} 36... fxe4 {[%clk 0:00:53.4]} 37. Ke2 {[%clk 0:00:10.7]}
37... h5 {[%clk 0:00:51.1]} 38. Rf1 {[%clk 0:00:09.6]} 38... Rf7 {[%clk
0:00:50]} 39. g4 {[%clk 0:00:10.1]} 39... hxg4 {[%clk 0:00:49.4]} 40. hxg4
{[%clk 0:00:11]} 40... Bf8 {[%clk 0:00:50]} 41. Rb6 {[%clk 0:00:10.8]} 41... Rf6
{[%clk 0:00:46.2]} 42. f5 {[%clk 0:00:11]} 42... Rcf7 {[%clk 0:00:24]} 43. Bg5
{[%clk 0:00:11.1]} 43... Bc5 {[%clk 0:00:17.4]} 44. Bxf6 {[%clk 0:00:11.4]}
44... Bxb6 {[%clk 0:00:17.8]} 45. fxe6 {[%clk 0:00:11.9]} 45... Rxf6 {[%clk
0:00:16.4]} 46. Rxf6 {[%clk 0:00:11.6]} 46... Bxa5 {[%clk 0:00:17.3]} 47. e7
{[%clk 0:00:11.7]} 47... Kg7 {[%clk 0:00:16]} 48. g5 {[%clk 0:00:11.3]} 1-0

[Event "Early-Titled-Tuesday-Blitz-November-28-2023"]
[Site "Chess.com"]
[Date "2023.11.28"]
[Round "5"]
[White "AryanTari"]
[Black "Hikaru"]
[Result "1-0"]
[WhiteElo "2984"]
[BlackElo "3212"]
[TimeControl "180+1"]
[EndTime "8:58:08 PST"]
[Termination "AryanTari won by resignation"]

1. e4 {[%clk 0:02:56.5]} 1... a6 {[%clk 0:02:56.5]} 2. a3 {[%clk 0:02:52.1]}
2... e5 {[%clk 0:02:41.2]} 3. Nf3 {[%clk 0:02:51.4]} 3... Nc6 {[%clk 0:02:41.1]}
4. Nc3 {[%clk 0:02:49.1]} 4... Nf6 {[%clk 0:02:25.1]} 5. d4 {[%clk 0:02:46.2]}
5... exd4 {[%clk 0:02:17]} 6. Nxd4 {[%clk 0:02:47.1]} 6... Nxe4 {[%clk
0:02:12.3]} 7. Nxc6 {[%clk 0:02:25.1]} 7... Nxc3 {[%clk 0:02:11]} 8. Nxd8 {[%clk
0:02:25.6]} 8... Nxd1 {[%clk 0:02:08.3]} 9. Nxf7 {[%clk 0:02:26]} 9... Kxf7
{[%clk 0:02:01.1]} 10. Bc4+ {[%clk 0:02:25.4]} 10... Kf6 {[%clk 0:01:58.7]} 11.
Kxd1 {[%clk 0:02:25.4]} 11... c6 {[%clk 0:01:58.4]} 12. h4 {[%clk 0:02:18.4]}
12... d5 {[%clk 0:01:58.3]} 13. Bd3 {[%clk 0:02:18.2]} 13... Bf5 {[%clk
0:01:53.6]} 14. Bg5+ {[%clk 0:02:15.1]} 14... Kg6 {[%clk 0:01:53.8]} 15. Kd2
{[%clk 0:02:00.7]} 15... Bc5 {[%clk 0:01:43.5]} 16. f3 {[%clk 0:01:55.7]} 16...
Rae8 {[%clk 0:01:38.4]} 17. Rae1 {[%clk 0:01:51.9]} 17... Bd4 {[%clk 0:01:18.4]}
18. c3 {[%clk 0:01:47.9]} 18... Bf2 {[%clk 0:01:16]} 19. Ref1 {[%clk 0:01:26]}
19... Bg3 {[%clk 0:01:06.9]} 20. Be3 {[%clk 0:01:23.3]} 20... h5 {[%clk
0:01:04.4]} 21. f4 {[%clk 0:01:10.7]} 21... Bxd3 {[%clk 0:00:56.4]} 22. Kxd3
{[%clk 0:01:11.6]} 22... Kf5 {[%clk 0:00:55.8]} 23. Rf3 {[%clk 0:00:59.8]} 23...
Kg4 {[%clk 0:00:56.1]} 24. f5 {[%clk 0:01:00]} 24... Rhf8 {[%clk 0:00:36.6]} 25.
Rhf1 {[%clk 0:00:43.3]} 25... Rf7 {[%clk 0:00:19.7]} 26. Bd4 {[%clk 0:00:24.6]}
26... Re4 {[%clk 0:00:19.7]} 27. f6 {[%clk 0:00:23.6]} 27... g6 {[%clk
0:00:19.7]} 28. c4 {[%clk 0:00:17.3]} 28... Bxh4 {[%clk 0:00:19.3]} 29. cxd5
{[%clk 0:00:17.8]} 29... cxd5 {[%clk 0:00:19.8]} 30. Rc1 {[%clk 0:00:14.2]}
30... Rf4 {[%clk 0:00:16.5]} 31. Rxf4+ {[%clk 0:00:13]} 31... Kxf4 {[%clk
0:00:17.4]} 32. Rf1+ {[%clk 0:00:11.9]} 32... Kg4 {[%clk 0:00:17.9]} 33. Be5
{[%clk 0:00:12.4]} 33... Bg3 {[%clk 0:00:16.9]} 34. Kd4 {[%clk 0:00:11.9]} 34...
Bxe5+ {[%clk 0:00:02.9]} 35. Kxe5 {[%clk 0:00:12.8]} 35... Kg3 {[%clk
0:00:03.6]} 36. Ke6 {[%clk 0:00:13.4]} 36... Rf8 {[%clk 0:00:03.5]} 37. f7
{[%clk 0:00:11.2]} 37... Kxg2 {[%clk 0:00:03.7]} 38. Rf6 {[%clk 0:00:11.8]}
38... g5 {[%clk 0:00:04.3]} 39. Rf5 {[%clk 0:00:12.4]} 39... g4 {[%clk
0:00:04.1]} 40. Rxh5 {[%clk 0:00:11.1]} 40... g3 {[%clk 0:00:04.6]} 41. Rxd5
{[%clk 0:00:11.3]} 41... Kf3 {[%clk 0:00:04.6]} 42. Ke7 {[%clk 0:00:11.8]} 42...
g2 {[%clk 0:00:03.9]} 43. Rg5 {[%clk 0:00:12.1]} 43... Rc8 {[%clk 0:00:04.1]}
44. f8=Q+ {[%clk 0:00:12.1]} 44... Rxf8 {[%clk 0:00:04.4]} 45. Kxf8 {[%clk
0:00:13]} 45... Kf2 {[%clk 0:00:05]} 46. Ke7 {[%clk 0:00:13.4]} 46... Kf1 {[%clk
0:00:05.9]} 47. Kd6 {[%clk 0:00:13.5]} 1-0

[Event "Early-Titled-Tuesday-Blitz-November-28-2023"]
[Site "Chess.com"]
[Date "2023.11.28"]
[Round "5"]
[White "OK97"]
[Black "Iskusnyh"]
[Result "1-0"]
[WhiteElo "2787"]
[BlackElo "2557"]
[TimeControl "180+1"]
[EndTime "8:58:12 PST"]
[Termination "OK97 won on time"]

1. e4 {[%clk 0:03:00.9]} 1... e6 {[%clk 0:02:59.4]} 2. d4 {[%clk 0:03:00.8]}
2... d5 {[%clk 0:02:59.7]} 3. e5 {[%clk 0:03:01.3]} 3... c5 {[%clk 0:02:59.1]}
4. c3 {[%clk 0:03:01.8]} 4... Nc6 {[%clk 0:02:58.3]} 5. Nf3 {[%clk 0:03:02.4]}
5... Nge7 {[%clk 0:02:56.1]} 6. Be2 {[%clk 0:02:34.3]} 6... Nf5 {[%clk
0:02:53.2]} 7. Na3 {[%clk 0:02:33.2]} 7... cxd4 {[%clk 0:02:35.6]} 8. cxd4
{[%clk 0:02:34.1]} 8... Bd7 {[%clk 0:02:15.9]} 9. Nc2 {[%clk 0:02:33.3]} 9...
Be7 {[%clk 0:02:14.7]} 10. O-O {[%clk 0:02:15]} 10... O-O {[%clk 0:02:13.7]} 11.
Bd3 {[%clk 0:02:08.4]} 11... f6 {[%clk 0:02:12.9]} 12. Bxf5 {[%clk 0:01:48.9]}
12... exf5 {[%clk 0:02:13.2]} 13. Re1 {[%clk 0:01:45.8]} 13... a5 {[%clk
0:02:06]} 14. Bf4 {[%clk 0:01:41.8]} 14... Be8 {[%clk 0:01:29.6]} 15. Qd3 {[%clk
0:01:38.7]} 15... Bh5 {[%clk 0:01:18.8]} 16. exf6 {[%clk 0:01:31]} 16... Bxf6
{[%clk 0:01:15.6]} 17. Ne5 {[%clk 0:01:24.1]} 17... Kh8 {[%clk 0:00:41.2]} 18.
Rac1 {[%clk 0:01:18.6]} 18... Ra6 {[%clk 0:00:34.7]} 19. Na3 {[%clk 0:00:56]}
19... Bxe5 {[%clk 0:00:29.3]} 20. Bxe5 {[%clk 0:00:43.9]} 20... f4 {[%clk
0:00:26.3]} 21. f3 {[%clk 0:00:34.7]} 21... Nb4 {[%clk 0:00:23]} 22. Qd2 {[%clk
0:00:32.7]} 22... Rg6 {[%clk 0:00:19.7]} 23. Kh1 {[%clk 0:00:25.7]} 23... Qh4
{[%clk 0:00:19.5]} 24. Rf1 {[%clk 0:00:17.6]} 24... Rh6 {[%clk 0:00:19.1]} 25.
Qe1 {[%clk 0:00:11.8]} 25... Qg5 {[%clk 0:00:18.2]} 26. Rc7 {[%clk 0:00:08.5]}
26... Rg8 {[%clk 0:00:15.1]} 27. Nb5 {[%clk 0:00:08.2]} 27... Nd3 {[%clk
0:00:15.1]} 28. Qe2 {[%clk 0:00:07.6]} 28... Bg6 {[%clk 0:00:14.5]} 29. Nd6
{[%clk 0:00:06.3]} 29... Qh4 {[%clk 0:00:13.8]} 30. h3 {[%clk 0:00:06.5]} 30...
Qg3 {[%clk 0:00:12.3]} 31. Nf7+ {[%clk 0:00:04.1]} 31... Bxf7 {[%clk 0:00:11.9]}
32. Rxf7 {[%clk 0:00:05]} 32... Nxe5 {[%clk 0:00:10.2]} 33. dxe5 {[%clk
0:00:04.7]} 33... Re6 {[%clk 0:00:10.2]} 34. Rxb7 {[%clk 0:00:04.2]} 34... Qg5
{[%clk 0:00:10.2]} 35. Re1 {[%clk 0:00:04]} 35... Rge8 {[%clk 0:00:10.3]} 36.
Rb5 {[%clk 0:00:04.3]} 36... Rxe5 {[%clk 0:00:09.4]} 37. Qxe5 {[%clk 0:00:04.1]}
37... Rxe5 {[%clk 0:00:07]} 38. Rb8+ {[%clk 0:00:04.2]} 1-0